{"text_format":"3","workbook":"xlsx","n_sheets":3,"sheets":[" 1. Berechnung Mehraufwendungen","2. Berechnung anr. Kosten","Grundlagen (nicht ändern)"],"read":"whole","date_system":"1900"}

{"sheet":" 1. Berechnung Mehraufwendungen","index":0,"n_rows":31,"n_cols":8,"rows_kept":31,"merged":[[1,1,1,2],[1,3,1,6],[2,0,3,0],[2,1,2,5],[2,6,3,6],[2,7,3,7]]}
["Kanton","UF-Nr. ",null,"Gemeinde"]
[]
["Nr.","Mehraufwendungen (Bewertung nach Art.24 Abs. 2 + Anhang 3 SVV)",{"$nulls":4},"Punkte","Bemerkungen"]
[null,"Gelände- neigung (Mittel)","Untergrund","Baumaterial Entfernung","Instandstellung / Ergänzung Entwässerung","Instandstellung Kunstbauten (Brücken, Mauern, Böschungen)"]
[{"$nulls":6},{"$f":"IF(ISBLANK(B5),\"\",VLOOKUP(B5,'Grundlagen (nicht ändern)'!$A$6:$B$8,2,0)+VLOOKUP(C5,'Grundlagen (nicht ändern)'!$A$11:$B$13,2,0)+VLOOKUP(D5,'Grundlagen (nicht ändern)'!$A$15:$B$16,2,0)+VLOOKUP(E5,'Grundlagen (nicht ändern)'!$A$18:$B$19:'Grundlagen (nicht ändern)'!$B$20,2,0)+VLOOKUP(F5,'Grundlagen (nicht ändern)'!$A$18:$B$19,2,0))","v":""}]
[{"$nulls":6},{"$f":"IF(ISBLANK(B6),\"\",VLOOKUP(B6,'Grundlagen (nicht ändern)'!$A$6:$B$8,2,0)+VLOOKUP(C6,'Grundlagen (nicht ändern)'!$A$11:$B$13,2,0)+VLOOKUP(D6,'Grundlagen (nicht ändern)'!$A$15:$B$16,2,0)+VLOOKUP(E6,'Grundlagen (nicht ändern)'!$A$18:$B$19:'Grundlagen (nicht ändern)'!$B$20,2,0)+VLOOKUP(F6,'Grundlagen (nicht ändern)'!$A$18:$B$19,2,0))","v":""}]
[{"$nulls":6},{"$f":"IF(ISBLANK(B7),\"\",VLOOKUP(B7,'Grundlagen (nicht ändern)'!$A$6:$B$8,2,0)+VLOOKUP(C7,'Grundlagen (nicht ändern)'!$A$11:$B$13,2,0)+VLOOKUP(D7,'Grundlagen (nicht ändern)'!$A$15:$B$16,2,0)+VLOOKUP(E7,'Grundlagen (nicht ändern)'!$A$18:$B$19:'Grundlagen (nicht ändern)'!$B$20,2,0)+VLOOKUP(F7,'Grundlagen (nicht ändern)'!$A$18:$B$19,2,0))","v":""}]
[{"$nulls":6},{"$f":"IF(ISBLANK(B8),\"\",VLOOKUP(B8,'Grundlagen (nicht ändern)'!$A$6:$B$8,2,0)+VLOOKUP(C8,'Grundlagen (nicht ändern)'!$A$11:$B$13,2,0)+VLOOKUP(D8,'Grundlagen (nicht ändern)'!$A$15:$B$16,2,0)+VLOOKUP(E8,'Grundlagen (nicht ändern)'!$A$18:$B$19:'Grundlagen (nicht ändern)'!$B$20,2,0)+VLOOKUP(F8,'Grundlagen (nicht ändern)'!$A$18:$B$19,2,0))","v":""}]
[{"$nulls":6},{"$f":"IF(ISBLANK(B9),\"\",VLOOKUP(B9,'Grundlagen (nicht ändern)'!$A$6:$B$8,2,0)+VLOOKUP(C9,'Grundlagen (nicht ändern)'!$A$11:$B$13,2,0)+VLOOKUP(D9,'Grundlagen (nicht ändern)'!$A$15:$B$16,2,0)+VLOOKUP(E9,'Grundlagen (nicht ändern)'!$A$18:$B$19:'Grundlagen (nicht ändern)'!$B$20,2,0)+VLOOKUP(F9,'Grundlagen (nicht ändern)'!$A$18:$B$19,2,0))","v":""}]
[{"$nulls":6},{"$f":"IF(ISBLANK(B10),\"\",VLOOKUP(B10,'Grundlagen (nicht ändern)'!$A$6:$B$8,2,0)+VLOOKUP(C10,'Grundlagen (nicht ändern)'!$A$11:$B$13,2,0)+VLOOKUP(D10,'Grundlagen (nicht ändern)'!$A$15:$B$16,2,0)+VLOOKUP(E10,'Grundlagen (nicht ändern)'!$A$18:$B$19:'Grundlagen (nicht ändern)'!$B$20,2,0)+VLOOKUP(F10,'Grundlagen (nicht ändern)'!$A$18:$B$19,2,0))","v":""}]
[{"$nulls":6},{"$f":"IF(ISBLANK(B11),\"\",VLOOKUP(B11,'Grundlagen (nicht ändern)'!$A$6:$B$8,2,0)+VLOOKUP(C11,'Grundlagen (nicht ändern)'!$A$11:$B$13,2,0)+VLOOKUP(D11,'Grundlagen (nicht ändern)'!$A$15:$B$16,2,0)+VLOOKUP(E11,'Grundlagen (nicht ändern)'!$A$18:$B$19:'Grundlagen (nicht ändern)'!$B$20,2,0)+VLOOKUP(F11,'Grundlagen (nicht ändern)'!$A$18:$B$19,2,0))","v":""}]
[{"$nulls":6},{"$f":"IF(ISBLANK(B12),\"\",VLOOKUP(B12,'Grundlagen (nicht ändern)'!$A$6:$B$8,2,0)+VLOOKUP(C12,'Grundlagen (nicht ändern)'!$A$11:$B$13,2,0)+VLOOKUP(D12,'Grundlagen (nicht ändern)'!$A$15:$B$16,2,0)+VLOOKUP(E12,'Grundlagen (nicht ändern)'!$A$18:$B$19:'Grundlagen (nicht ändern)'!$B$20,2,0)+VLOOKUP(F12,'Grundlagen (nicht ändern)'!$A$18:$B$19,2,0))","v":""}]
[{"$nulls":6},{"$f":"IF(ISBLANK(B13),\"\",VLOOKUP(B13,'Grundlagen (nicht ändern)'!$A$6:$B$8,2,0)+VLOOKUP(C13,'Grundlagen (nicht ändern)'!$A$11:$B$13,2,0)+VLOOKUP(D13,'Grundlagen (nicht ändern)'!$A$15:$B$16,2,0)+VLOOKUP(E13,'Grundlagen (nicht ändern)'!$A$18:$B$19:'Grundlagen (nicht ändern)'!$B$20,2,0)+VLOOKUP(F13,'Grundlagen (nicht ändern)'!$A$18:$B$19,2,0))","v":""}]
[{"$nulls":6},{"$f":"IF(ISBLANK(B14),\"\",VLOOKUP(B14,'Grundlagen (nicht ändern)'!$A$6:$B$8,2,0)+VLOOKUP(C14,'Grundlagen (nicht ändern)'!$A$11:$B$13,2,0)+VLOOKUP(D14,'Grundlagen (nicht ändern)'!$A$15:$B$16,2,0)+VLOOKUP(E14,'Grundlagen (nicht ändern)'!$A$18:$B$19:'Grundlagen (nicht ändern)'!$B$20,2,0)+VLOOKUP(F14,'Grundlagen (nicht ändern)'!$A$18:$B$19,2,0))","v":""}]
[{"$nulls":6},{"$f":"IF(ISBLANK(B15),\"\",VLOOKUP(B15,'Grundlagen (nicht ändern)'!$A$6:$B$8,2,0)+VLOOKUP(C15,'Grundlagen (nicht ändern)'!$A$11:$B$13,2,0)+VLOOKUP(D15,'Grundlagen (nicht ändern)'!$A$15:$B$16,2,0)+VLOOKUP(E15,'Grundlagen (nicht ändern)'!$A$18:$B$19:'Grundlagen (nicht ändern)'!$B$20,2,0)+VLOOKUP(F15,'Grundlagen (nicht ändern)'!$A$18:$B$19,2,0))","v":""}]
[{"$nulls":6},{"$f":"IF(ISBLANK(B16),\"\",VLOOKUP(B16,'Grundlagen (nicht ändern)'!$A$6:$B$8,2,0)+VLOOKUP(C16,'Grundlagen (nicht ändern)'!$A$11:$B$13,2,0)+VLOOKUP(D16,'Grundlagen (nicht ändern)'!$A$15:$B$16,2,0)+VLOOKUP(E16,'Grundlagen (nicht ändern)'!$A$18:$B$19:'Grundlagen (nicht ändern)'!$B$20,2,0)+VLOOKUP(F16,'Grundlagen (nicht ändern)'!$A$18:$B$19,2,0))","v":""}]
[{"$nulls":6},{"$f":"IF(ISBLANK(B17),\"\",VLOOKUP(B17,'Grundlagen (nicht ändern)'!$A$6:$B$8,2,0)+VLOOKUP(C17,'Grundlagen (nicht ändern)'!$A$11:$B$13,2,0)+VLOOKUP(D17,'Grundlagen (nicht ändern)'!$A$15:$B$16,2,0)+VLOOKUP(E17,'Grundlagen (nicht ändern)'!$A$18:$B$19:'Grundlagen (nicht ändern)'!$B$20,2,0)+VLOOKUP(F17,'Grundlagen (nicht ändern)'!$A$18:$B$19,2,0))","v":""}]
[{"$nulls":6},{"$f":"IF(ISBLANK(B18),\"\",VLOOKUP(B18,'Grundlagen (nicht ändern)'!$A$6:$B$8,2,0)+VLOOKUP(C18,'Grundlagen (nicht ändern)'!$A$11:$B$13,2,0)+VLOOKUP(D18,'Grundlagen (nicht ändern)'!$A$15:$B$16,2,0)+VLOOKUP(E18,'Grundlagen (nicht ändern)'!$A$18:$B$19:'Grundlagen (nicht ändern)'!$B$20,2,0)+VLOOKUP(F18,'Grundlagen (nicht ändern)'!$A$18:$B$19,2,0))","v":""}]
[{"$nulls":6},{"$f":"IF(ISBLANK(B19),\"\",VLOOKUP(B19,'Grundlagen (nicht ändern)'!$A$6:$B$8,2,0)+VLOOKUP(C19,'Grundlagen (nicht ändern)'!$A$11:$B$13,2,0)+VLOOKUP(D19,'Grundlagen (nicht ändern)'!$A$15:$B$16,2,0)+VLOOKUP(E19,'Grundlagen (nicht ändern)'!$A$18:$B$19:'Grundlagen (nicht ändern)'!$B$20,2,0)+VLOOKUP(F19,'Grundlagen (nicht ändern)'!$A$18:$B$19,2,0))","v":""}]
[{"$nulls":6},{"$f":"IF(ISBLANK(B20),\"\",VLOOKUP(B20,'Grundlagen (nicht ändern)'!$A$6:$B$8,2,0)+VLOOKUP(C20,'Grundlagen (nicht ändern)'!$A$11:$B$13,2,0)+VLOOKUP(D20,'Grundlagen (nicht ändern)'!$A$15:$B$16,2,0)+VLOOKUP(E20,'Grundlagen (nicht ändern)'!$A$18:$B$19:'Grundlagen (nicht ändern)'!$B$20,2,0)+VLOOKUP(F20,'Grundlagen (nicht ändern)'!$A$18:$B$19,2,0))","v":""}]
[{"$nulls":6},{"$f":"IF(ISBLANK(B21),\"\",VLOOKUP(B21,'Grundlagen (nicht ändern)'!$A$6:$B$8,2,0)+VLOOKUP(C21,'Grundlagen (nicht ändern)'!$A$11:$B$13,2,0)+VLOOKUP(D21,'Grundlagen (nicht ändern)'!$A$15:$B$16,2,0)+VLOOKUP(E21,'Grundlagen (nicht ändern)'!$A$18:$B$19:'Grundlagen (nicht ändern)'!$B$20,2,0)+VLOOKUP(F21,'Grundlagen (nicht ändern)'!$A$18:$B$19,2,0))","v":""}]
[{"$nulls":6},{"$f":"IF(ISBLANK(B22),\"\",VLOOKUP(B22,'Grundlagen (nicht ändern)'!$A$6:$B$8,2,0)+VLOOKUP(C22,'Grundlagen (nicht ändern)'!$A$11:$B$13,2,0)+VLOOKUP(D22,'Grundlagen (nicht ändern)'!$A$15:$B$16,2,0)+VLOOKUP(E22,'Grundlagen (nicht ändern)'!$A$18:$B$19:'Grundlagen (nicht ändern)'!$B$20,2,0)+VLOOKUP(F22,'Grundlagen (nicht ändern)'!$A$18:$B$19,2,0))","v":""}]
[{"$nulls":6},{"$f":"IF(ISBLANK(B23),\"\",VLOOKUP(B23,'Grundlagen (nicht ändern)'!$A$6:$B$8,2,0)+VLOOKUP(C23,'Grundlagen (nicht ändern)'!$A$11:$B$13,2,0)+VLOOKUP(D23,'Grundlagen (nicht ändern)'!$A$15:$B$16,2,0)+VLOOKUP(E23,'Grundlagen (nicht ändern)'!$A$18:$B$19:'Grundlagen (nicht ändern)'!$B$20,2,0)+VLOOKUP(F23,'Grundlagen (nicht ändern)'!$A$18:$B$19,2,0))","v":""}]
[{"$nulls":6},{"$f":"IF(ISBLANK(B24),\"\",VLOOKUP(B24,'Grundlagen (nicht ändern)'!$A$6:$B$8,2,0)+VLOOKUP(C24,'Grundlagen (nicht ändern)'!$A$11:$B$13,2,0)+VLOOKUP(D24,'Grundlagen (nicht ändern)'!$A$15:$B$16,2,0)+VLOOKUP(E24,'Grundlagen (nicht ändern)'!$A$18:$B$19:'Grundlagen (nicht ändern)'!$B$20,2,0)+VLOOKUP(F24,'Grundlagen (nicht ändern)'!$A$18:$B$19,2,0))","v":""}]
[{"$nulls":6},{"$f":"IF(ISBLANK(B25),\"\",VLOOKUP(B25,'Grundlagen (nicht ändern)'!$A$6:$B$8,2,0)+VLOOKUP(C25,'Grundlagen (nicht ändern)'!$A$11:$B$13,2,0)+VLOOKUP(D25,'Grundlagen (nicht ändern)'!$A$15:$B$16,2,0)+VLOOKUP(E25,'Grundlagen (nicht ändern)'!$A$18:$B$19:'Grundlagen (nicht ändern)'!$B$20,2,0)+VLOOKUP(F25,'Grundlagen (nicht ändern)'!$A$18:$B$19,2,0))","v":""}]
[{"$nulls":6},{"$f":"IF(ISBLANK(B26),\"\",VLOOKUP(B26,'Grundlagen (nicht ändern)'!$A$6:$B$8,2,0)+VLOOKUP(C26,'Grundlagen (nicht ändern)'!$A$11:$B$13,2,0)+VLOOKUP(D26,'Grundlagen (nicht ändern)'!$A$15:$B$16,2,0)+VLOOKUP(E26,'Grundlagen (nicht ändern)'!$A$18:$B$19:'Grundlagen (nicht ändern)'!$B$20,2,0)+VLOOKUP(F26,'Grundlagen (nicht ändern)'!$A$18:$B$19,2,0))","v":""}]
[{"$nulls":6},{"$f":"IF(ISBLANK(B27),\"\",VLOOKUP(B27,'Grundlagen (nicht ändern)'!$A$6:$B$8,2,0)+VLOOKUP(C27,'Grundlagen (nicht ändern)'!$A$11:$B$13,2,0)+VLOOKUP(D27,'Grundlagen (nicht ändern)'!$A$15:$B$16,2,0)+VLOOKUP(E27,'Grundlagen (nicht ändern)'!$A$18:$B$19:'Grundlagen (nicht ändern)'!$B$20,2,0)+VLOOKUP(F27,'Grundlagen (nicht ändern)'!$A$18:$B$19,2,0))","v":""}]
[{"$nulls":6},{"$f":"IF(ISBLANK(B28),\"\",VLOOKUP(B28,'Grundlagen (nicht ändern)'!$A$6:$B$8,2,0)+VLOOKUP(C28,'Grundlagen (nicht ändern)'!$A$11:$B$13,2,0)+VLOOKUP(D28,'Grundlagen (nicht ändern)'!$A$15:$B$16,2,0)+VLOOKUP(E28,'Grundlagen (nicht ändern)'!$A$18:$B$19:'Grundlagen (nicht ändern)'!$B$20,2,0)+VLOOKUP(F28,'Grundlagen (nicht ändern)'!$A$18:$B$19,2,0))","v":""}]
[{"$nulls":6},{"$f":"IF(ISBLANK(B29),\"\",VLOOKUP(B29,'Grundlagen (nicht ändern)'!$A$6:$B$8,2,0)+VLOOKUP(C29,'Grundlagen (nicht ändern)'!$A$11:$B$13,2,0)+VLOOKUP(D29,'Grundlagen (nicht ändern)'!$A$15:$B$16,2,0)+VLOOKUP(E29,'Grundlagen (nicht ändern)'!$A$18:$B$19:'Grundlagen (nicht ändern)'!$B$20,2,0)+VLOOKUP(F29,'Grundlagen (nicht ändern)'!$A$18:$B$19,2,0))","v":""}]
[{"$nulls":6},{"$f":"IF(ISBLANK(B30),\"\",VLOOKUP(B30,'Grundlagen (nicht ändern)'!$A$6:$B$8,2,0)+VLOOKUP(C30,'Grundlagen (nicht ändern)'!$A$11:$B$13,2,0)+VLOOKUP(D30,'Grundlagen (nicht ändern)'!$A$15:$B$16,2,0)+VLOOKUP(E30,'Grundlagen (nicht ändern)'!$A$18:$B$19:'Grundlagen (nicht ändern)'!$B$20,2,0)+VLOOKUP(F30,'Grundlagen (nicht ändern)'!$A$18:$B$19,2,0))","v":""}]
[{"$nulls":6},{"$f":"IF(ISBLANK(B31),\"\",VLOOKUP(B31,'Grundlagen (nicht ändern)'!$A$6:$B$8,2,0)+VLOOKUP(C31,'Grundlagen (nicht ändern)'!$A$11:$B$13,2,0)+VLOOKUP(D31,'Grundlagen (nicht ändern)'!$A$15:$B$16,2,0)+VLOOKUP(E31,'Grundlagen (nicht ändern)'!$A$18:$B$19:'Grundlagen (nicht ändern)'!$B$20,2,0)+VLOOKUP(F31,'Grundlagen (nicht ändern)'!$A$18:$B$19,2,0))","v":""}]

{"sheet":"2. Berechnung anr. Kosten","index":1,"n_rows":34,"n_cols":13,"rows_kept":34,"merged":[[1,2,1,5],[1,6,3,6],[1,7,1,9],[1,10,3,10],[1,11,3,11],[1,12,3,12],[2,0,4,0],[2,1,4,1],[2,2,3,3],[2,4,3,5],[32,0,33,0],[33,2,33,4],[33,7,33,9],[33,11,33,12]]}
["Kanton","UF-Nr. ","Gemeinde"]
[{"$f":"' 1. Berechnung Mehraufwendungen'!A2","v":0},{"$f":"' 1. Berechnung Mehraufwendungen'!B2","v":0},{"$f":"' 1. Berechnung Mehraufwendungen'!D2","v":0},{"$nulls":3},"maximal anrechenbare Kosten Total","Beitragszone",null,null,"Kontrolle Gesamt-länge","Beitrags-satz Schnitt","max. Beitragssatz"]
["Nr.","Punkte","Berechnung anr. Kosten Kieswege",null,"Berechnung anr. Kosten Belagswege",null,null,1,2,3]
[{"$nulls":7},{"v":0.27,"d":"27%"},{"v":0.3,"d":"30%"},{"v":0.33,"d":"33%"}]
[null,null,"m'","anr. Kosten/m'","m'","anr. Kosten/m'","Fr.","m","m","m","m","%","Fr."]
[{"$f":"' 1. Berechnung Mehraufwendungen'!A5","v":0},{"$f":"IF(' 1. Berechnung Mehraufwendungen'!G5=\"\",0,' 1. Berechnung Mehraufwendungen'!G5)","v":0},null,{"$f":"IF(ISBLANK(C6),0,(IF(B6>4,50,IF(B6>1,40,25))))","v":0},null,{"$f":"IF(ISBLANK(E6),0,(IF(B6>4,60,IF(B6>1,50,40))))","v":0},{"$f":"C6*D6+E6*F6","v":0},{"$nulls":3},{"$f":"IF(A6=0,\" \",IF(-C6-E6+H6+I6+J6=0,\"OK\",SUM(-C6-E6+H6+I6+J6)))","v":" "},{"$f":"IF(H6+I6+J6=0,\"\",(H6*$H$4+I6*$I$4+J6*$J$4)/(H6+I6+J6))","v":""},{"$f":"IF(G6=0,\"\",L6*G6)","v":""}]
[{"$f":"' 1. Berechnung Mehraufwendungen'!A6","v":0},{"$f":"IF(' 1. Berechnung Mehraufwendungen'!G6=\"\",0,' 1. Berechnung Mehraufwendungen'!G6)","v":0},null,{"$f":"IF(ISBLANK(C7),0,(IF(B7>4,50,IF(B7>1,40,25))))","v":0},null,{"$f":"IF(ISBLANK(E7),0,(IF(B7>4,60,IF(B7>1,50,40))))","v":0},{"$f":"C7*D7+E7*F7","v":0},{"$nulls":3}," ",{"$f":"IF(H7+I7+J7=0,\"\",(H7*$H$4+I7*$I$4+J7*$J$4)/(H7+I7+J7))","v":""},{"$f":"IF(G7=0,\"\",L7*G7)","v":""}]
[{"$f":"' 1. Berechnung Mehraufwendungen'!A7","v":0},{"$f":"IF(' 1. Berechnung Mehraufwendungen'!G7=\"\",0,' 1. Berechnung Mehraufwendungen'!G7)","v":0},null,0,null,0,0,{"$nulls":3}," ",{"$f":"IF(H8+I8+J8=0,\"\",(H8*$H$4+I8*$I$4+J8*$J$4)/(H8+I8+J8))","v":""},""]
[{"$f":"' 1. Berechnung Mehraufwendungen'!A8","v":0},{"$f":"IF(' 1. Berechnung Mehraufwendungen'!G8=\"\",0,' 1. Berechnung Mehraufwendungen'!G8)","v":0},null,0,null,0,0,{"$nulls":3}," ",{"$f":"IF(H9+I9+J9=0,\"\",(H9*$H$4+I9*$I$4+J9*$J$4)/(H9+I9+J9))","v":""},""]
[{"$f":"' 1. Berechnung Mehraufwendungen'!A9","v":0},{"$f":"IF(' 1. Berechnung Mehraufwendungen'!G9=\"\",0,' 1. Berechnung Mehraufwendungen'!G9)","v":0},null,0,null,0,0,{"$nulls":3}," ",{"$f":"IF(H10+I10+J10=0,\"\",(H10*$H$4+I10*$I$4+J10*$J$4)/(H10+I10+J10))","v":""},""]
[{"$f":"' 1. Berechnung Mehraufwendungen'!A10","v":0},{"$f":"IF(' 1. Berechnung Mehraufwendungen'!G10=\"\",0,' 1. Berechnung Mehraufwendungen'!G10)","v":0},null,0,null,0,0,{"$nulls":3}," ","",""]
[{"$f":"' 1. Berechnung Mehraufwendungen'!A11","v":0},{"$f":"IF(' 1. Berechnung Mehraufwendungen'!G11=\"\",0,' 1. Berechnung Mehraufwendungen'!G11)","v":0},null,0,null,0,0,{"$nulls":3}," ","",""]
[{"$f":"' 1. Berechnung Mehraufwendungen'!A12","v":0},{"$f":"IF(' 1. Berechnung Mehraufwendungen'!G12=\"\",0,' 1. Berechnung Mehraufwendungen'!G12)","v":0},null,0,null,0,0,{"$nulls":3}," ","",""]
[{"$f":"' 1. Berechnung Mehraufwendungen'!A13","v":0},{"$f":"IF(' 1. Berechnung Mehraufwendungen'!G13=\"\",0,' 1. Berechnung Mehraufwendungen'!G13)","v":0},null,0,null,0,0,{"$nulls":3}," ",{"$f":"IF(H14+I14+J14=0,\"\",(H14*$H$4+I14*$I$4+J14*$J$4)/(H14+I14+J14))","v":""},""]
[{"$f":"' 1. Berechnung Mehraufwendungen'!A14","v":0},{"$f":"IF(' 1. Berechnung Mehraufwendungen'!G14=\"\",0,' 1. Berechnung Mehraufwendungen'!G14)","v":0},null,0,null,0,0,{"$nulls":3}," ",{"$f":"IF(H15+I15+J15=0,\"\",(H15*$H$4+I15*$I$4+J15*$J$4)/(H15+I15+J15))","v":""},""]
[{"$f":"' 1. Berechnung Mehraufwendungen'!A15","v":0},{"$f":"IF(' 1. Berechnung Mehraufwendungen'!G15=\"\",0,' 1. Berechnung Mehraufwendungen'!G15)","v":0},null,0,null,0,{"$f":"C16*D16+E16*F16","v":0},{"$nulls":3}," ",{"$f":"IF(H16+I16+J16=0,\"\",(H16*$H$4+I16*$I$4+J16*$J$4)/(H16+I16+J16))","v":""},""]
[{"$f":"' 1. Berechnung Mehraufwendungen'!A16","v":0},{"$f":"IF(' 1. Berechnung Mehraufwendungen'!G16=\"\",0,' 1. Berechnung Mehraufwendungen'!G16)","v":0},null,0,null,0,0,{"$nulls":3}," ",{"$f":"IF(H17+I17+J17=0,\"\",(H17*$H$4+I17*$I$4+J17*$J$4)/(H17+I17+J17))","v":""},""]
[{"$f":"' 1. Berechnung Mehraufwendungen'!A17","v":0},{"$f":"IF(' 1. Berechnung Mehraufwendungen'!G17=\"\",0,' 1. Berechnung Mehraufwendungen'!G17)","v":0},null,0,null,0,0,{"$nulls":3}," ","",""]
[{"$f":"' 1. Berechnung Mehraufwendungen'!A18","v":0},{"$f":"IF(' 1. Berechnung Mehraufwendungen'!G18=\"\",0,' 1. Berechnung Mehraufwendungen'!G18)","v":0},null,0,null,0,0,{"$nulls":3}," ","",""]
[{"$f":"' 1. Berechnung Mehraufwendungen'!A19","v":0},{"$f":"IF(' 1. Berechnung Mehraufwendungen'!G19=\"\",0,' 1. Berechnung Mehraufwendungen'!G19)","v":0},null,0,null,0,0,{"$nulls":3}," ","",""]
[{"$f":"' 1. Berechnung Mehraufwendungen'!A20","v":0},{"$f":"IF(' 1. Berechnung Mehraufwendungen'!G20=\"\",0,' 1. Berechnung Mehraufwendungen'!G20)","v":0},null,0,null,0,0,{"$nulls":3}," ","",""]
[{"$f":"' 1. Berechnung Mehraufwendungen'!A21","v":0},{"$f":"IF(' 1. Berechnung Mehraufwendungen'!G21=\"\",0,' 1. Berechnung Mehraufwendungen'!G21)","v":0},null,0,null,0,0,{"$nulls":3}," ","",""]
[{"$f":"' 1. Berechnung Mehraufwendungen'!A22","v":0},{"$f":"IF(' 1. Berechnung Mehraufwendungen'!G22=\"\",0,' 1. Berechnung Mehraufwendungen'!G22)","v":0},null,0,null,0,0,{"$nulls":3}," ","",""]
[{"$f":"' 1. Berechnung Mehraufwendungen'!A23","v":0},{"$f":"IF(' 1. Berechnung Mehraufwendungen'!G23=\"\",0,' 1. Berechnung Mehraufwendungen'!G23)","v":0},null,0,null,0,0,{"$nulls":3}," ","",""]
[{"$f":"' 1. Berechnung Mehraufwendungen'!A24","v":0},{"$f":"IF(' 1. Berechnung Mehraufwendungen'!G24=\"\",0,' 1. Berechnung Mehraufwendungen'!G24)","v":0},null,0,null,0,0,{"$nulls":3}," ","",""]
[{"$f":"' 1. Berechnung Mehraufwendungen'!A25","v":0},{"$f":"IF(' 1. Berechnung Mehraufwendungen'!G25=\"\",0,' 1. Berechnung Mehraufwendungen'!G25)","v":0},null,0,null,0,0,{"$nulls":3}," ","",""]
[{"$f":"' 1. Berechnung Mehraufwendungen'!A26","v":0},{"$f":"IF(' 1. Berechnung Mehraufwendungen'!G26=\"\",0,' 1. Berechnung Mehraufwendungen'!G26)","v":0},null,0,null,0,0,{"$nulls":3}," ","",""]
[{"$f":"' 1. Berechnung Mehraufwendungen'!A27","v":0},{"$f":"IF(' 1. Berechnung Mehraufwendungen'!G27=\"\",0,' 1. Berechnung Mehraufwendungen'!G27)","v":0},null,0,null,0,0,{"$nulls":3}," ","",""]
[{"$f":"' 1. Berechnung Mehraufwendungen'!A28","v":0},{"$f":"IF(' 1. Berechnung Mehraufwendungen'!G28=\"\",0,' 1. Berechnung Mehraufwendungen'!G28)","v":0},null,0,null,0,0,{"$nulls":3}," ","",""]
[{"$f":"' 1. Berechnung Mehraufwendungen'!A29","v":0},{"$f":"IF(' 1. Berechnung Mehraufwendungen'!G29=\"\",0,' 1. Berechnung Mehraufwendungen'!G29)","v":0},null,0,null,0,0,{"$nulls":3}," ","",""]
[{"$f":"' 1. Berechnung Mehraufwendungen'!A30","v":0},{"$f":"IF(' 1. Berechnung Mehraufwendungen'!G30=\"\",0,' 1. Berechnung Mehraufwendungen'!G30)","v":0},null,0,null,0,0,{"$nulls":3}," ","",""]
[{"$f":"' 1. Berechnung Mehraufwendungen'!A31","v":0},{"$f":"IF(' 1. Berechnung Mehraufwendungen'!G31=\"\",0,' 1. Berechnung Mehraufwendungen'!G31)","v":0},null,0,null,0,0,{"$nulls":3}," ","",""]
["Tot.",null,{"$f":"SUM(C6:C32)","v":0},null,{"$f":"SUM(E6:E32)","v":0},null,{"$f":"SUM(G6:G32)","v":0},{"$f":"SUM(H6:H32)","v":0},{"$f":"SUM(I6:I32)","v":0},{"$f":"SUM(J6:J32)","v":0},null,null,{"$f":"SUM(M6:M32)","v":0}]
[null,null,{"$f":"SUM(C33:E33)","v":0},{"$nulls":4},{"$f":"SUM(H33:J33)","v":0}]

{"sheet":"Grundlagen (nicht ändern)","index":2,"n_rows":26,"n_cols":4,"rows_kept":26}
["Grundlagen für Berechnung PWI gemäss Art. 24 Abs. 2 und Anhang 3 SVV"]
[]
[]
[]
[]
["<20%",0]
["20-40%",1]
[">40%",2]
[]
[]
["gut",0]
["feucht",1]
["nass/instabil",2]
[]
["< 10 km",0]
["≥ 10 km",1]
[]
["ja",1]
["nein",0]
[null,"max 7"]
[]
[null,"Kiesweg","Hartbelag","CHF/km"]
["Stufe 1","0-1","-",25000]
["Stufe 2","2-4","0-1",40000]
["Stufe 3","5-7","2-4",50000]
["Stufe 4","-","5-7",60000]